[Event "Campeonato de Aragón Individual Absoluto 2022"]
[Site "Zaragoza, Spain"]
[Date "2022.08.27"]
[Round "1.1"]
[White "Atares Buisan, Sergio"]
[Black "Garza Marco, Sergio"]
[Result "0-1"]
[TimeControl "90 min + 30 sg"]
[WhiteElo "1545"]
[BlackElo "2408"]

1. e4 {[%clk 01:30:53]} c5 {[%clk 01:30:54]} 2. Nf3 {[%clk 01:31:15]} a6 {[%clk
01:31:18]} 3. c4 {[%clk 01:31:00]} e6 {[%clk 01:31:38]} 4. d4 {[%clk 01:31:21]}
cxd4 {[%clk 01:32:03]} 5. Nxd4 {[%clk 01:31:42]} Nf6 {[%clk 01:31:42]} 6. Nc3
{[%clk 01:31:22]} Qc7 {[%clk 01:32:07]} 7. Be2 {[%clk 01:30:32]} Bb4 {[%clk
01:32:09]} 8. Qd3 {[%clk 01:30:51]} O-O {[%clk 01:29:27]} 9. O-O {[%clk
01:30:11]} d6 {[%clk 01:25:09]} 10. Be3 {[%clk 01:28:06]} Nbd7 {[%clk
01:24:12]} 11. Qc2 {[%clk 01:21:36]} Bxc3 12. bxc3 {[%clk 01:21:54]} Ne5 {[%clk
01:19:35]} 13. Bg5 {[%clk 01:16:23]} {[%emt 00:03:44]} Nfd7 {[%clk 01:02:43]}
{[%emt 00:17:23]} 14. f4 {[%clk 01:12:45]} {[%emt 00:04:08]} Nc6 {[%clk
01:03:02]} {[%emt 00:00:11]} 15. Kh1 {[%clk 01:12:09]} {[%emt 00:01:06]} Nc5
{[%clk 01:02:52]} {[%emt 00:00:40]} 16. f5 {[%clk 01:06:44]} {[%emt 00:05:55]}
f6 {[%clk 01:02:47]} {[%emt 00:00:35]} 17. Bh4 {[%clk 01:03:32]} {[%emt
00:03:41]} Bd7 {[%clk 00:59:06]} {[%emt 00:04:10]} 18. Bg4 {[%clk 01:00:32]}
{[%emt 00:03:30]} Ne5 {[%clk 00:55:39]} {[%emt 00:03:57]} 19. Bh3 {[%clk
00:54:06]} {[%emt 00:06:55]} Rae8 {[%clk 00:55:06]} {[%emt 00:01:04]} 20. Qe2
{[%clk 00:48:33]} {[%emt 00:06:03]} exf5 {[%clk 00:52:44]} {[%emt 00:02:51]} 21.
exf5 {[%clk 00:48:30]} {[%emt 00:00:33]} Re7 {[%clk 00:47:28]} {[%emt
00:05:46]} 22. Rf4 {[%clk 00:42:48]} {[%emt 00:06:13]} Ng6 {[%clk 00:45:21]}
{[%emt 00:02:37]} 23. Qf3 {[%clk 00:38:55]} {[%emt 00:04:20]} Nxf4 {[%clk
00:45:07]} {[%emt 00:00:46]} 24. Qxf4 {[%clk 00:39:12]} {[%emt 00:00:13]} Rfe8
{[%clk 00:44:33]} {[%emt 00:01:04]} 25. g4 {[%clk 00:36:15]} {[%emt 00:03:27]}
Ne4 {[%clk 00:40:57]} {[%emt 00:04:06]} 26. Bg2 {[%clk 00:34:13]} {[%emt
00:02:31]} Qxc4 {[%clk 00:40:29]} {[%emt 00:00:58]} 27. Bxe4 {[%clk 00:33:36]}
{[%emt 00:01:07]} Rxe4 {[%clk 00:40:50]} {[%emt 00:00:09]} 28. Qxd6 {[%clk
00:33:58]} {[%emt 00:00:08]} Qxc3 {[%clk 00:39:10]} {[%emt 00:02:10]} 29. Rd1
{[%clk 00:32:12]} {[%emt 00:02:15]} Rxd4 {[%clk 00:33:04]} {[%emt 00:06:36]} 30.
Qxd4 {[%clk 00:32:09]} {[%emt 00:00:33]} Bc6+ {[%clk 00:33:25]} {[%emt
00:00:09]} 31. Kg1 {[%clk 00:32:27]} {[%emt 00:00:12]} Qf3 {[%clk 00:33:42]}
{[%emt 00:00:12]} 32. Qc4+ {[%clk 00:32:15]} {[%emt 00:00:42]} Kh8 {[%clk
00:34:06]} {[%emt 00:00:05]} 0-1

[Event "Campeonato de Aragón Individual Absoluto 2022"]
[Site "Zaragoza, Spain"]
[Date "2022.08.27"]
[Round "1.2"]
[White "Glavina, Pablo"]
[Black "Lorente Aguar, Ruben"]
[Result "1-0"]
[TimeControl "90 min + 30 sg"]
[WhiteElo "2394"]
[BlackElo "1523"]

1. e4 {[%clk 01:30:58]} e5 {[%clk 01:30:37]} 2. Bc4 {[%clk 01:31:22]} Nf6
{[%clk 01:23:42]} 3. d3 {[%clk 01:31:41]} d6 {[%clk 01:23:07]} 4. Nc3 {[%clk
01:32:05]} Nc6 {[%clk 01:23:18]} 5. f4 exf4 {[%clk 01:23:35]} 6. Bxf4 {[%clk
01:32:54]} h6 {[%clk 01:23:34]} 7. Nf3 {[%clk 01:33:18]} Bd7 {[%clk 01:18:49]}
8. a3 {[%clk 01:33:24]} g5 {[%clk 01:18:04]} 9. Bg3 {[%clk 01:32:58]} Bg7
{[%clk 01:17:58]} 10. Qd2 {[%clk 01:33:16]} Qe7 {[%clk 01:16:10]} 11. O-O-O
{[%clk 01:33:36]} Ne5 {[%clk 00:52:17]} {[%emt 00:12:21]} 12. Nxe5 {[%clk
01:34:00]} {[%emt 00:00:06]} dxe5 {[%clk 00:52:27]} {[%emt 00:00:20]} 13. Rdf1
{[%clk 01:34:24]} {[%emt 00:00:05]} c6 {[%clk 00:48:02]} {[%emt 00:04:56]} 14.
Nd1 {[%clk 01:34:48]} {[%emt 00:00:06]} Be6 {[%clk 00:37:37]} {[%emt 00:10:55]}
15. Ne3 {[%clk 01:34:39]} {[%emt 00:00:38]} Bxc4 {[%clk 00:34:59]} {[%emt
00:03:08]} 16. Nxc4 {[%clk 01:35:04]} {[%emt 00:00:05]} Nh5 {[%clk 00:33:27]}
{[%emt 00:02:02]} 17. Ne3 {[%clk 01:34:42]} {[%emt 00:00:52]} Nxg3 {[%clk
00:20:50]} {[%emt 00:13:07]} 18. hxg3 {[%clk 01:35:07]} {[%emt 00:00:05]} Qe6
{[%clk 00:21:08]} {[%emt 00:00:12]} 19. Kb1 {[%clk 01:35:09]} {[%emt 00:00:28]}
O-O-O {[%clk 00:19:21]} {[%emt 00:02:18]} 20. Rf5 {[%clk 01:35:07]} {[%emt
00:00:32]} Rd7 {[%clk 00:11:06]} {[%emt 00:08:46]} 21. Rhf1 {[%clk 01:35:24]}
{[%emt 00:00:12]} Rf8 {[%clk 00:09:28]} {[%emt 00:02:08]} 22. Qe2 {[%clk
01:35:35]} {[%emt 00:00:19]} b5 {[%clk 00:08:04]} {[%emt 00:01:55]} 23. Ng4
{[%clk 01:35:49]} {[%emt 00:00:16]} Kb8 {[%clk 00:07:08]} {[%emt 00:01:26]} 24.
Qe3 {[%clk 01:35:51]} {[%emt 00:00:27]} Qd6 {[%clk 00:06:29]} {[%emt 00:01:09]}
25. Qd2 {[%clk 01:35:26]} {[%emt 00:00:55]} Kb7 {[%clk 00:06:17]} {[%emt
00:00:42]} 26. Qb4 {[%clk 01:35:45]} {[%emt 00:00:10]} Qxb4 {[%clk 00:04:57]}
{[%emt 00:01:51]} 27. axb4 {[%clk 01:36:11]} {[%emt 00:00:04]} Re7 {[%clk
00:05:11]} {[%emt 00:00:16]} 28. Ne3 {[%clk 01:36:02]} {[%emt 00:00:39]} Rd7
{[%clk 00:03:50]} {[%emt 00:01:51]} 29. R5f2 {[%clk 01:36:19]} {[%emt
00:00:13]} a6 {[%clk 00:02:50]} {[%emt 00:01:31]} 30. Rh1 {[%clk 01:36:36]}
{[%emt 00:00:12]} Rh8 {[%clk 00:02:15]} {[%emt 00:01:05]} 31. Rf5 {[%clk
01:36:53]} {[%emt 00:00:13]} Re7 {[%clk 00:01:35]} {[%emt 00:01:11]} 32. c3
{[%clk 01:37:13]} {[%emt 00:00:09]} Kb6 {[%clk 00:01:40]} {[%emt 00:00:26]} 33.
Kc2 {[%clk 01:37:36]} {[%emt 00:00:07]} a5 {[%clk 00:01:44]} {[%emt 00:00:27]}
34. bxa5+ {[%clk 01:37:46]} {[%emt 00:00:20]} Kxa5 {[%clk 00:01:22]} {[%emt
00:00:52]} 35. Rhf1 {[%clk 01:37:59]} {[%emt 00:00:16]} Rf8 {[%clk 00:01:36]}
{[%emt 00:00:16]} 36. R5f3 {[%clk 01:38:24]} {[%emt 00:00:05]} Rd7 {[%clk
00:01:04]} {[%emt 00:01:02]} 37. Nf5 {[%clk 01:38:47]} {[%emt 00:00:06]} Rg8
{[%clk 00:01:17]} {[%emt 00:00:18]} 38. Nxg7 {[%clk 01:39:09]} {[%emt
00:00:08]} Rxg7 {[%clk 00:01:41]} {[%emt 00:00:06]} 39. Rf6 {[%clk 01:39:36]}
{[%emt 00:00:03]} Kb6 {[%clk 00:01:15]} {[%emt 00:00:56]} 40. R1f5 {[%clk
01:39:57]} {[%emt 00:00:09]} Re7 {[%clk 00:01:18]} {[%emt 00:00:28]} 41. Rxh6
{[%clk 01:40:21]} {[%emt 00:00:05]} Kc7 {[%clk 00:01:09]} {[%emt 00:00:39]} 42.
Rff6 {[%clk 01:40:44]} {[%emt 00:00:07]} Kb7 {[%clk 00:00:38]} {[%emt
00:01:01]} 43. Rxc6 {[%clk 01:41:06]} {[%emt 00:00:07]} 1-0

[Event "Campeonato de Aragón Individual Absoluto 2022"]
[Site "Zaragoza, Spain"]
[Date "2022.08.27"]
[Round "1.3"]
[White "Lorente Melcon, Hector"]
[Black "Quintin Navarro, Alberto"]
[Result "0-1"]
[TimeControl "90 min + 30 sg"]
[WhiteElo "1522"]
[BlackElo "2372"]

1. e4 {[%clk 01:30:56]} c5 {[%clk 01:30:57]} 2. Nf3 {[%clk 01:31:15]} g6 {[%clk
01:31:04]} 3. c3 {[%clk 01:31:28]} d5 {[%clk 01:31:26]} 4. exd5 Qxd5 {[%clk
01:31:48]} 5. Na3 {[%clk 01:30:05]} Bg7 {[%clk 01:31:32]} 6. Bc4 {[%clk
01:28:58]} Qd8 {[%clk 01:30:24]} 7. O-O {[%clk 01:29:01]} Nf6 {[%clk 01:30:35]}
8. Nc2 {[%clk 01:29:06]} O-O {[%clk 01:30:58]} 9. d4 {[%clk 01:29:28]} Qc7
{[%clk 01:29:14]} 10. Bb3 {[%clk 01:26:13]} Bg4 {[%clk 01:27:37]} 11. h3 {[%clk
01:25:15]} Bd7 {[%clk 01:21:16]} 12. Re1 {[%clk 01:23:20]} c4 {[%clk 01:21:08]}
13. Rxe7 {[%clk 01:23:08]} cxb3 14. axb3 {[%clk 01:23:15]} Nd5 {[%clk
01:18:05]} 15. Re2 {[%clk 01:22:11]} {[%emt 00:01:26]} b5 {[%clk 01:17:48]}
{[%emt 00:00:47]} 16. Ne3 {[%clk 01:21:15]} {[%emt 00:01:25]} Bc6 {[%clk
01:10:00]} {[%emt 00:08:18]} 17. Nxd5 {[%clk 01:20:18]} {[%emt 00:01:27]} Bxd5
{[%clk 01:10:21]} {[%emt 00:00:09]} 18. Qd3 {[%clk 01:19:09]} {[%emt 00:01:38]}
Bxb3 {[%clk 01:10:25]} {[%emt 00:00:26]} 19. Qe4 {[%clk 01:17:11]} {[%emt
00:02:28]} Qc6 {[%clk 01:09:36]} {[%emt 00:01:20]} 20. Qe7 {[%clk 01:14:34]}
{[%emt 00:02:36]} Nd7 {[%emt 00:00:53]} 21. Qb4 {[%clk 01:14:03]} {[%emt
00:01:28]} Bd5 {[%clk 01:07:34]} {[%emt 00:02:12]} 22. Ne1 {[%clk 01:08:58]}
{[%emt 00:05:35]} a5 {[%clk 01:07:35]} {[%emt 00:00:30]} 23. Qe7 {[%clk
01:09:06]} {[%emt 00:00:22]} Bf6 {[%clk 01:05:55]} {[%emt 00:02:10]} 24. Qe3
{[%clk 01:09:14]} {[%emt 00:00:22]} Nb6 {[%clk 01:06:14]} {[%emt 00:00:11]} 25.
f3 {[%clk 01:07:08]} {[%emt 00:02:36]} Rae8 {[%clk 01:05:52]} {[%emt 00:00:52]}
26. Qf2 {[%clk 01:07:05]} {[%emt 00:00:29]} Bc4 {[%clk 01:05:14]} {[%emt
00:01:13]} 27. Rxe8 {[%clk 01:06:37]} {[%emt 00:00:58]} Rxe8 {[%clk 01:05:37]}
{[%emt 00:00:07]} 28. Rxa5 {[%clk 01:06:32]} {[%emt 00:00:35]} Re2 {[%clk
01:04:48]} {[%emt 00:01:19]} 29. Qg3 {[%clk 01:05:47]} {[%emt 00:01:15]} Qe8
{[%clk 01:05:03]} {[%emt 00:00:16]} 0-1

[Event "Campeonato de Aragón Individual Absoluto 2022"]
[Site "Zaragoza, Spain"]
[Date "2022.08.27"]
[Round "1.4"]
[White "Vela Frago, Alberto"]
[Black "Fuentes Garces, Pedro Jon"]
[Result "1-0"]
[TimeControl "90 min + 30 sg"]
[WhiteElo "2232"]
[BlackElo "1488"]

1. c4 {[%emt 04:11:15]} e5 2. Nc3 Nf6 3. g3 Bb4 4. Qc2 O-O 5. a3 Bxc3 6. Qxc3
Re8 7. Bg2 c6 8. d3 h6 9. e4 {[%emt 00:06:05]} d5 {[%emt 00:06:26]} 10. Ne2
{[%emt 00:00:20]} Be6 {[%emt 00:08:58]} 11. O-O {[%emt 00:01:42]} Nbd7 {[%emt
00:04:14]} 12. h3 {[%emt 00:07:34]} dxc4 {[%emt 00:08:58]} 13. dxc4 {[%emt
00:00:01]} Nc5 {[%emt 00:00:15]} 14. f3 {[%emt 00:07:07]} Qd3 {[%emt 00:06:03]}
15. Qxd3 {[%emt 00:00:51]} Nxd3 {[%emt 00:00:07]} 16. b3 {[%emt 00:00:13]} b5
{[%emt 00:06:43]} 17. cxb5 {[%emt 00:02:43]} cxb5 {[%emt 00:00:05]} 18. b4
{[%emt 00:02:33]} Nxc1 {[%emt 00:01:51]} 19. Raxc1 {[%emt 00:01:38]} Bc4 {[%emt
00:01:17]} 20. Kf2 {[%emt 00:01:04]} a5 {[%emt 00:02:46]} 21. Rfd1 {[%emt
00:06:59]} axb4 {[%emt 00:02:08]} 22. axb4 {[%emt 00:00:01]} Ra2 {[%emt
00:00:23]} 23. Bf1 {[%emt 00:00:02]} Rea8 {[%emt 00:02:17]} 24. g4 {[%emt
00:05:30]} Rb2 {[%emt 00:04:45]} 25. Rb1 {[%emt 00:00:43]} Raa2 {[%emt
00:01:27]} 26. Rxb2 {[%emt 00:07:24]} Rxb2 {[%emt 00:00:08]} 27. Ke3 {[%emt
00:00:24]} Rb3+ {[%emt 00:01:50]} 28. Kf2 {[%emt 00:00:07]} Rxb4 {[%emt
00:00:14]} 29. Nc1 {[%emt 00:01:05]} Kf8 {[%emt 00:04:17]} 30. Bxc4 {[%emt
00:03:47]} bxc4 {[%emt 00:00:36]} 31. Rd2 {[%emt 00:00:37]} Ke7 {[%emt
00:02:42]} 32. Na2 {[%emt 00:00:24]} Rb6 {[%emt 00:02:44]} 33. Rc2 {[%emt
00:01:12]} Kd6 {[%emt 00:01:00]} 34. Nc3 {[%emt 00:00:41]} Rb3 {[%emt
00:01:34]} 35. Na4 {[%emt 00:00:16]} Rb4 {[%emt 00:01:13]} 36. Nb2 {[%emt
00:00:01]} c3 {[%emt 00:02:03]} 37. Nd1 {[%emt 00:00:01]} Rc4 {[%emt 00:01:19]}
38. Ne3 {[%emt 00:02:28]} Rb4 {[%emt 00:03:11]} 39. Nf5+ {[%emt 00:01:23]} Kd7
{[%emt 00:00:22]} 40. Rxc3 {[%emt 00:00:08]} Rxe4 {[%emt 00:01:07]} 41. Rd3+
{[%emt 00:00:17]} Rd4 {[%emt 00:00:26]} 42. Nxd4 {[%emt 00:00:02]} exd4 {[%emt
00:00:06]} 43. Rxd4+ {[%emt 00:00:06]} Ke6 {[%emt 00:00:26]} 44. Ra4 {[%emt
00:01:08]} Nd5 {[%emt 00:04:27]} 45. Kg3 {[%emt 00:01:17]} f5 {[%emt 00:01:57]}
46. Ra6+ {[%emt 00:00:59]} Ke5 {[%emt 00:00:57]} 47. Rg6 {[%emt 00:00:32]} fxg4
{[%emt 00:01:01]} 48. hxg4 {[%emt 00:00:16]} 1-0

[Event "Campeonato de Aragón Individual Absoluto 2022"]
[Site "Zaragoza, Spain"]
[Date "2022.08.27"]
[Round "1.5"]
[White "Jario Dominguez, Diego"]
[Black "Ereza Vizcarra, Fernando"]
[Result "0-1"]
[TimeControl "90 min + 30 sg"]
[WhiteElo "1479"]
[BlackElo "2132"]

1. e4 {[%clk 01:30:56]} c5 {[%clk 01:30:23]} 2. c3 {[%clk 01:31:16]} g6 {[%clk
01:29:38]} 3. d4 {[%clk 01:31:30]} cxd4 4. cxd4 {[%clk 01:31:54]} d5 {[%clk
01:30:29]} 5. e5 {[%clk 01:29:49]} Nh6 {[%clk 01:30:45]} 6. Nf3 {[%clk
01:29:59]} Bg7 {[%clk 01:31:11]} 7. Nc3 {[%clk 01:27:08]} O-O {[%clk 01:31:29]}
8. Bd3 {[%clk 01:27:19]} Nc6 {[%clk 01:31:54]} 9. h3 {[%clk 01:26:56]} Nf5
{[%clk 01:30:04]} 10. Bc2 {[%clk 01:26:31]} e6 {[%clk 01:12:17]} 11. O-O {[%clk
01:26:07]} Nh4 {[%clk 01:10:23]} {[%emt 00:02:05]} 12. Be3 {[%emt 00:03:18]}
Nxf3+ {[%clk 01:08:06]} {[%emt 00:02:46]} 13. Qxf3 {[%clk 01:21:36]} {[%emt
00:02:14]} f6 {[%clk 01:08:15]} {[%emt 00:00:22]} 14. exf6 {[%clk 01:19:41]}
{[%emt 00:02:25]} Bxf6 {[%clk 01:08:28]} {[%emt 00:00:17]} 15. Qd1 {[%clk
01:18:19]} {[%emt 00:01:52]} Qb6 {[%clk 01:08:42]} {[%emt 00:00:16]} 16. Na4
{[%clk 01:15:56]} {[%emt 00:02:53]} Qc7 {[%clk 01:08:53]} {[%emt 00:00:19]} 17.
Re1 {[%clk 01:15:08]} {[%emt 00:01:17]} Qg7 {[%clk 01:05:10]} {[%emt 00:04:13]}
18. Nc5 {[%clk 01:10:22]} {[%emt 00:05:16]} Nxd4 {[%clk 00:38:50]} {[%emt
00:26:50]} 19. Bxd4 {[%clk 01:09:39]} {[%emt 00:01:14]} Bxd4 {[%clk 00:39:16]}
{[%emt 00:00:04]} 20. Nxe6 {[%clk 01:09:33]} {[%emt 00:00:36]} Bxe6 {[%clk
00:39:43]} {[%emt 00:00:03]} 21. Rxe6 {[%clk 01:09:51]} {[%emt 00:00:12]} Rxf2
{[%clk 00:40:09]} {[%emt 00:00:04]} 22. Kh1 {[%clk 01:09:35]} {[%emt 00:00:46]}
Kh8 {[%clk 00:24:53]} {[%emt 00:15:47]} 23. Bb3 {[%clk 01:05:49]} {[%emt
00:04:16]} Bxb2 {[%clk 00:18:41]} {[%emt 00:06:43]} 24. Rb1 {[%clk 01:05:49]}
{[%emt 00:00:30]} Rd8 {[%clk 00:19:06]} {[%emt 00:00:05]} 25. Qe1 {[%clk
01:05:57]} {[%emt 00:00:22]} Rf7 {[%clk 00:08:57]} {[%emt 00:10:39]} 26. Re8+
{[%clk 01:05:26]} {[%emt 00:01:00]} Rxe8 {[%clk 00:09:14]} {[%emt 00:00:14]} 27.
Qxe8+ {[%clk 01:05:49]} {[%emt 00:00:07]} Rf8 {[%clk 00:09:43]} 28. Qe6 {[%clk
01:05:06]} {[%emt 00:01:14]} Bd4 {[%clk 00:04:49]} {[%emt 00:05:24]} 29. Bxd5
{[%clk 01:04:08]} {[%emt 00:01:29]} b6 {[%clk 00:05:18]} {[%emt 00:00:01]} 30.
Re1 {[%clk 01:03:52]} {[%emt 00:00:45]} Qc7 {[%clk 00:05:37]} {[%emt 00:00:11]}
31. Bc4 {[%clk 01:02:29]} {[%emt 00:01:53]} Qg3 {[%clk 00:03:46]} {[%emt
00:02:21]} 32. Qe7 {[%clk 01:01:49]} {[%emt 00:01:10]} Bc5 {[%clk 00:03:33]}
{[%emt 00:00:43]} 33. Qe4 {[%clk 01:01:35]} {[%emt 00:00:44]} a5 {[%clk
00:03:40]} {[%emt 00:00:23]} 34. Qe2 {[%clk 01:01:24]} {[%emt 00:00:40]} h6
{[%clk 00:01:25]} {[%emt 00:02:46]} 35. Qd2 {[%clk 01:01:03]} {[%emt 00:00:50]}
Qf4 {[%clk 00:01:22]} {[%emt 00:00:33]} 36. Qd3 {[%clk 00:59:58]} {[%emt
00:01:34]} Bd6 {[%clk 00:01:07]} {[%emt 00:00:46]} 37. g3 {[%clk 00:56:54]}
{[%emt 00:03:35]} Qf3+ {[%clk 00:00:52]} {[%emt 00:00:46]} 38. Qxf3 {[%clk
00:56:58]} {[%emt 00:00:25]} Rxf3 {[%clk 00:01:21]} 39. Kg2 {[%clk 00:57:17]}
{[%emt 00:00:12]} Rxg3+ {[%clk 00:01:45]} {[%emt 00:00:06]} 40. Kf2 {[%clk
00:57:33]} {[%emt 00:00:14]} Rc3 {[%clk 00:00:50]} {[%emt 00:01:25]} 41. Re6
{[%clk 00:56:37]} {[%emt 00:01:26]} Bc5+ {[%clk 00:01:16]} {[%emt 00:00:04]}
0-1

[Event "Campeonato de Aragón Individual Absoluto 2022"]
[Site "Zaragoza, Spain"]
[Date "2022.08.28"]
[Round "2.1"]
[White "Garza Marco, Sergio"]
[Black "Garcia Estruch, Jorge"]
[Result "1-0"]
[TimeControl "90 min + 30 sg"]
[WhiteElo "2408"]
[BlackElo "1740"]

1. d4 {[%clk 01:30:57]} {[%emt 00:00:01]} Nf6 {[%clk 01:30:39]} {[%emt
00:00:21]} 2. c4 {[%clk 01:31:21]} {[%emt 00:00:06]} e5 {[%clk 01:30:49]}
{[%emt 00:00:20]} 3. dxe5 {[%clk 01:31:45]} {[%emt 00:00:06]} Ng4 {[%clk
01:31:04]} {[%emt 00:00:14]} 4. Bf4 {[%clk 01:31:47]} {[%emt 00:00:28]} Nc6
{[%clk 01:31:18]} {[%emt 00:00:16]} 5. Nf3 {[%clk 01:32:10]} {[%emt 00:00:07]}
Bb4+ {[%clk 01:31:37]} {[%emt 00:00:11]} 6. Nbd2 {[%clk 01:27:22]} {[%emt
00:05:18]} Qe7 {[%clk 01:31:09]} {[%emt 00:00:58]} 7. e3 {[%clk 01:27:46]}
{[%emt 00:00:06]} Ngxe5 {[%clk 01:31:15]} {[%emt 00:00:23]} 8. Nxe5 {[%clk
01:28:09]} {[%emt 00:00:07]} Nxe5 {[%clk 01:31:34]} {[%emt 00:00:11]} 9. Be2
{[%clk 01:28:27]} {[%emt 00:00:12]} O-O {[%clk 01:31:24]} {[%emt 00:00:40]} 10.
O-O {[%clk 01:28:50]} {[%emt 00:00:07]} Bxd2 {[%clk 01:31:35]} {[%emt
00:00:18]} 11. Qxd2 {[%clk 01:29:13]} {[%emt 00:00:06]} d6 {[%clk 01:31:52]}
{[%emt 00:00:13]} 12. b4 {[%clk 01:28:40]} {[%emt 00:01:04]} f6 {[%clk
01:26:33]} {[%emt 00:05:49]} 13. Rac1 {[%clk 01:26:57]} {[%emt 00:02:13]} Be6
{[%clk 01:23:10]} {[%emt 00:03:52]} 14. Qb2 {[%clk 01:16:45]} {[%emt 00:10:42]}
b6 {[%clk 01:19:57]} {[%emt 00:03:44]} 15. c5 {[%clk 01:15:53]} {[%emt
00:01:21]} bxc5 {[%clk 01:19:19]} {[%emt 00:01:08]} 16. bxc5 {[%clk 01:14:39]}
{[%emt 00:01:45]} Rab8 {[%clk 01:17:49]} {[%emt 00:02:00]} 17. Qd4 {[%clk
00:48:10]} {[%emt 00:26:58]} Rfd8 {[%clk 01:06:05]} {[%emt 00:12:14]} 18. cxd6
{[%clk 00:48:10]} {[%emt 00:00:31]} cxd6 {[%clk 01:03:49]} {[%emt 00:02:46]} 19.
a4 {[%clk 00:44:21]} {[%emt 00:04:18]} Qb7 {[%clk 00:53:12]} {[%emt 00:11:06]}
20. Rfd1 {[%clk 00:39:50]} {[%emt 00:05:02]} Qb2 {[%clk 00:44:16]} {[%emt
00:09:27]} 21. Bb5 {[%clk 00:39:59]} {[%emt 00:00:22]} Qxd4 {[%clk 00:44:17]}
{[%emt 00:00:28]} 22. exd4 {[%clk 00:39:53]} {[%emt 00:00:35]} Nf7 {[%clk
00:43:15]} {[%emt 00:01:32]} 23. Rc7 {[%clk 00:38:48]} {[%emt 00:01:35]} a5
{[%clk 00:40:10]} {[%emt 00:03:36]} 24. Bd2 {[%clk 00:34:56]} {[%emt 00:04:22]}
Ra8 {[%clk 00:38:46]} {[%emt 00:01:54]} 25. Re1 {[%clk 00:34:50]} {[%emt
00:00:36]} Bd5 {[%clk 00:35:36]} {[%emt 00:03:40]} 26. Ree7 {[%clk 00:35:12]}
{[%emt 00:00:08]} Rdc8 {[%clk 00:34:45]} {[%emt 00:01:21]} 27. Bxa5 {[%clk
00:30:46]} {[%emt 00:04:57]} Rxc7 {[%clk 00:33:30]} {[%emt 00:01:45]} 28. Bxc7
{[%clk 00:30:15]} {[%emt 00:01:00]} Kf8 {[%clk 00:33:22]} {[%emt 00:00:38]} 29.
Re3 {[%clk 00:28:30]} {[%emt 00:02:15]} g6 {[%clk 00:29:51]} {[%emt 00:04:01]}
30. Rc3 {[%clk 00:27:10]} {[%emt 00:01:50]} Ra7 {[%clk 00:29:36]} {[%emt
00:00:45]} 31. Bb6 {[%clk 00:25:38]} {[%emt 00:02:02]} Re7 {[%clk 00:29:29]}
{[%emt 00:00:38]} 32. Kf1 {[%clk 00:25:44]} {[%emt 00:00:24]} Ng5 {[%clk
00:28:53]} {[%emt 00:01:07]} 33. f3 {[%clk 00:25:52]} {[%emt 00:00:22]} Nf7
{[%clk 00:26:09]} {[%emt 00:03:15]} 34. a5 {[%clk 00:25:52]} {[%emt 00:00:30]}
Rb7 {[%clk 00:24:55]} {[%emt 00:01:44]} 35. Rc8+ {[%clk 00:25:58]} {[%emt
00:00:24]} Kg7 {[%clk 00:25:01]} {[%emt 00:00:25]} 36. Ke2 {[%clk 00:22:19]}
{[%emt 00:04:08]} g5 {[%clk 00:23:37]} {[%emt 00:01:54]} 37. Kd3 {[%clk
00:18:58]} {[%emt 00:03:51]} h5 {[%clk 00:23:30]} {[%emt 00:00:37]} 38. Bc4
{[%clk 00:18:39]} {[%emt 00:00:48]} Bxc4+ {[%clk 00:23:25]} {[%emt 00:00:36]}
39. Kxc4 {[%clk 00:18:56]} {[%emt 00:00:12]} 1-0